Cogmind - Beta 9.4 *** ADVENTURER MODE // 2020.02.15 @ 21:34:47 Player: DizzyWaters Result: Destroyed by Y-45 Defender with Beam Rifle Performance ------------- Evolutions (0) 0 Regions Visited (2) 400 Robots Destroyed (46) 230 Value Destroyed (626) 626 Prototype IDs (0) 0 Alien Tech Used (0) 0 Bonus (7) 7 TOTAL SCORE: 1263 Bonus ------- Follower Combat Kills 7 Cogmind --------- Core Integrity 0/250 Matter 278/300 Energy 125/125 System Corruption 0% Temperature Cool (9) Movement Rolling (100) Ox1 Location -10/Mines Parts ------- > --- POWER (1) -------- Light Ion Engine > --- PROPULSION (2) --- Armored Wheel Armored Wheel > --- UTILITY (2) ------ Large Storage Unit Large Storage Unit > --- WEAPON (2) ------- Light Assault Rifle Light Cannon > --- INVENTORY (16) --- Ion Engine Aluminum Leg Aluminum Leg Aluminum Leg Core Shielding Propulsion Shielding Peak State ------------ > --- POWER ------------ Light Ion Engine > --- PROPULSION ------- Armored Wheel Armored Wheel > --- UTILITY ---------- Small Storage Unit Targeting Computer > --- WEAPON ----------- Medium Laser Assault Rifle > --- INVENTORY -------- Ion Engine Aluminum Leg Aluminum Leg Structural Scanner Small Laser [Rating: 9] Favorites ----------- Power Ion Engine Engine Ion Engine Propulsion Armored Wheel Leg Aluminum Leg Wheel Armored Wheel Utility Targeting Computer Device Improved Terrain Scanner Storage Small Storage Unit Processor Targeting Computer Weapon Assault Rifle Energy Gun Medium Laser Ballistic Gun Assault Rifle Ballistic Cannon Light Cannon Build | -11 -10 -10 ------- Run | Scr Mat Min Slots Evolved . | . . . Power . | . . . Propulsion . | . . . Utility . | . . . Weapon . | . . . Parts Attached 24 | 7 15 2 Power 4 | 1 3 . Engine 4 | 1 3 . Core . | . . . Reactor . | . . . Propulsion 8 | 2 6 . Treads . | . . . Leg 2 | . 2 . Wheel 6 | 2 4 . Hover . | . . . Flight . | . . . Utility 5 | 2 2 1 Device 1 | 1 . . Storage 3 | 1 1 1 Processor 1 | . 1 . Hackware . | . . . Protection . | . . . Artifact . | . . . Weapon 7 | 2 4 1 Energy Gun 2 | 1 1 . Energy Cannon . | . . . Ballistic Gun 4 | 1 2 1 Ballistic Cannon 1 | . 1 . Launcher . | . . . Special Weapon . | . . . Impact Weapon . | . . . Slashing Weapon . | . . . Piercing Weapon . | . . . Special Melee Weapon . | . . . Unidentified Prototypes . | . . . Parts Lost 5 | . 3 2 Power 1 | . 1 . Propulsion . | . . . Utility 1 | . . 1 Weapon 3 | . 2 1 Highest Loss Streak 2 | . 1 2 Average Slot Usage (%) 98 | . 98 97 Engine 14 | . 14 14 Wheel 26 | . 26 28 Storage 16 | . 13 27 Processor 11 | . 13 . Energy Gun 5 | . 7 . Ballistic Gun 17 | . 19 11 Ballistic Cannon 3 | . 1 14 Naked Turns . | . . . Heaviest Build 39 | 12 25 39 Greatest Support 24 | 20 24 24 Greatest Overweight (x) 3 | 1 3 1 Average Overweight (x) . | . . 1 Largest Inventory Capacity 16 | 6 10 16 Average Capacity 8 | 5 6 15 Most Carried 8 | 6 8 7 Average Carried 5 | 3 5 6 Final Capacity 16 | 6 10 16 Final Carried 7 | 4 7 6 Class Distribution -------------------- 100% | Mutant Dominant Class ---------------- Mutant | -10/Materials Mutant | -10/Mines Resources | -11 -10 -10 ----------- Run | Scr Mat Min Matter Collected 864 | 297 465 102 Remotely . | . . . Salvage Created 1125 | 168 912 45 Parts 112 | 17 83 12 Haulers Intercepted . | . . . Recyclers Shooed . | . . . Parts Field Recycled . | . . . Retrieved Matter . | . . . Parts Self-Destructed . | . . . Prevented . | . . . Kills | -11 -10 -10 ------- Run | Scr Mat Min Combat Hostiles Destroyed 27 | . 22 5 Guns 23 | . 21 2 Cannons 4 | . 1 3 Classes Destroyed 7 | 3 4 . Worker 6 | 2 4 . Builder 3 | . 3 . Tunneler 5 | 5 . . Recycler 3 | 1 2 . Watcher 2 | . 2 . Swarmer 17 | . 12 5 Grunt 10 | . 10 . Best Kill Streak 8 | 5 8 3 Combat Bots Only 8 | . 8 3 Max Kills in Single Turn 2 | 1 2 1 Gunslinging 1 | . 1 . Exploded . | . . . Melee . | . . . Uniques/NPCs Destroyed . | . . . Combat | -11 -10 -10 -------- Run | Scr Mat Min Damage Taken 1138 | . 828 310 Core 253 | . 180 73 Absorbed by Shields . | . . . Core Remaining (%) 100 | 100 . . Volleys Fired 115 | 17 78 20 Largest 2 | 2 2 2 Hottest 70 | 70 70 55 Shots Fired 217 | 30 153 34 Gun 185 | 30 141 14 Cannon 32 | . 12 20 Launcher . | . . . Special . | . . . Kinetic 161 | 13 114 34 Thermal 56 | 17 39 . Explosive . | . . . Electromagnetic . | . . . Robot Hit Streak 23 | 5 23 3 Robot Miss Streak 3 | 2 3 3 Penetration Max . | . . . Secondary Targets 5 | . 5 . Max Gunslinging Chain 1 | . 1 . Shots Hit Robots 136 | 21 97 18 Core Hits 59 | 9 44 6 Critical Hits 1 | . 1 . Critical Kills 1 | . 1 . Critical Parts Destroyed . | . . . Melee Attacks . | . . . Impact . | . . . Slashing . | . . . Piercing . | . . . Sneak Attacks . | . . . Combat Hostiles . | . . . Follow-up Attacks . | . . . Damage Inflicted 1722 | 234 1248 240 Guns 1507 | 234 1175 98 Cannons 215 | . 73 142 Explosions . | . . . Melee . | . . . Ramming . | . . . Kinetic 1233 | 85 908 240 Thermal 489 | 149 340 . Explosive . | . . . Electromagnetic . | . . . Impact . | . . . Slashing . | . . . Piercing . | . . . Highest Corruption . | . . . Average Corruption . | . . . Corruption Purged . | . . . Overload Shots . | . . . Overflow Damage 13 | . . 13 Projectiles 13 | . . 13 Explosions . | . . . Melee . | . . . Knockbacks 3 | . 2 1 Impact . | . . . Kinetic 3 | . 2 1 Secondary . | . . . Self-Inflicted Damage . | . . . Shots . | . . . Rammed . | . . . Targets Rammed . | . . . Kicked . | . . . Crushed . | . . . Highest Temperature 93 | 36 93 26 Average Temperature 22 | 16 25 12 Received Heat Transfer 309 | . 282 27 Siege Activations . | . . . Robots Corrupted . | . . . Combat Hostiles . | . . . Parts Fried . | . . . Impact Corruptions . | . . . Robots Melted . | . . . Combat Hostiles . | . . . Parts Melted 3 | . 3 . Heat Transferred 1396 | 444 952 . Parts Sabotaged . | . . . Parts Stolen . | . . . Parts Stripped . | . . . Power Chain Reactions . | . . . Missiles Intercepted . | . . . Alert | -11 -10 -10 ------- Run | Scr Mat Min Peak Influence 353 | 40 353 218 Average Influence 146 | 14 161 151 Maximum Alert Level 1 | . 1 1 Low Security (%) 72 | 100 66 90 Level 1 27 | . 33 9 Level 2 . | . . . Level 3 . | . . . Level 4 . | . . . Level 5 . | . . . High Security . | . . . Max Security . | . . . Squads Dispatched 3 | . 3 . Investigation 3 | . 3 . Extermination . | . . . Reinforcement . | . . . Assault . | . . . Garrison . | . . . Intercept . | . . . Construction Impeded . | . . . Haulers Reinforced . | . . . Stealth | -11 -10 -10 --------- Run | Scr Mat Min Distress Signals 1 | . 1 . Communications Jammed . | . . . Distress Signals . | . . . Times Spotted 35 | . 27 8 Peak Tracking Total 6 | . 6 4 Tactical Retreats 1 | . 1 . Traps | -11 -10 -10 ------- Run | Scr Mat Min Traps Triggered 2 | . 2 . Indirectly . | . . . Trap Hack Attempts . | . . . Triggered . | . . . Disarmed 1 | . 1 . Reprogrammed 6 | . 6 . Reused 1 | . 1 . Traps Extracted . | . . . Installed . | . . . Triggered 1 | . 1 . Machines | -11 -10 -10 ---------- Run | Scr Mat Min Machines Disabled 3 | . 3 . Max in Single Turn 1 | . 1 . Machines Sabotaged . | . . . Garrisons Compromised . | . . . Overloaded Fab Kills . | . . . Fab Network Shutdowns . | . . . Hacking | -11 -10 -10 --------- Run | Scr Mat Min Machines Accessed 9 | . 9 . Terminals 6 | . 6 . Fabricators . | . . . Repair Stations 1 | . 1 . Recycling Units 2 | . 2 . Scanalyzers . | . . . Garrison Access . | . . . Total Hacks 28 | . 28 . Successful 21 | . 21 . Failed 7 | . 7 . Catastrophic 2 | . 2 . Database Lockouts . | . . . Manual . | . . . Terminals 21 | . 21 . Fabricators . | . . . Repair Stations 4 | . 4 . Recycling Units 3 | . 3 . Scanalyzers . | . . . Garrison Access . | . . . Terminal Hacks 15 | . 15 . Record 3 | . 3 . Emergency Access Points 2 | . 2 . Locate Traps 1 | . 1 . Disarm Traps 1 | . 1 . Reprogram Traps 1 | . 1 . Dispatch Records 1 | . 1 . Maintenance Status 1 | . 1 . Security Status 1 | . 1 . Transport Status 2 | . 2 . Recall Assault 1 | . 1 . Registered Prototypes 1 | . 1 . Fabricator Hacks . | . . . Repair Station Hacks 4 | . 4 . Scan Component 2 | . 2 . Repair 2 | . 2 . Recycling Unit Hacks 2 | . 2 . Retrieve Components 2 | . 2 . Scanalyzer . | . . . Garrison Access Hacks . | . . . Unauthorized Hacks . | . . . Terminals . | . . . Fabricators . | . . . Repair Stations . | . . . Recycling Units . | . . . Scanalyzers . | . . . Garrison Access . | . . . Data Cores Recovered . | . . . Used . | . . . Hacking Detections 6 | . 6 . Full Trace Events 2 | . 2 . Feedback Events . | . . . Feedback Blocked . | . . . Robot Schematics Acquired . | . . . Robots Built . | . . . Matter . | . . . Time . | . . . Total Robot Build Rating . | . . . Part Schematics Acquired . | . . . Parts Built . | . . . Matter . | . . . Time . | . . . Total Part Build Rating . | . . . Parts Repaired 2 | . 2 . Time 64 | . 64 . Parts Recycled . | . . . Recycled Matter . | . . . Retrieved Matter . | . . . Retrieved Components 9 | . 9 . Parts Scanalyzed . | . . . Part Schematics Acquired . | . . . Parts Damaged . | . . . Bothacking | -11 -10 -10 ------------ Run | Scr Mat Min Used RIF Installer . | . . . Robots Hacked . | . . . Non-combat . | . . . Combat . | . . . Robot Hacks Applied . | . . . Relay Couplers Released . | . . . Robots Rewired . | . . . Allies Hacked . | . . . Hacks Repelled . | . . . Allies | -11 -10 -10 -------- Run | Scr Mat Min Total Allies 2 | . . 2 Largest Group 2 | . . 2 Highest-Rated Group 58 | . . 58 Highest-Rated Ally 31 | . . 31 Total Orders . | . . . Ally Attacks 9 | . . 9 Total Damage 166 | . . 166 Kills 1 | . . 1 Allies Corrupted . | . . . Allies Melted . | . . . Intel | -11 -10 -10 ------- Run | Scr Mat Min Robot Analysis Total . | . . . Derelict Logs Recovered 3 | . . 3 Drone Launches . | . . . Drone Recoveries . | . . . Exploration | -11 -10 -10 ------------- Run | Scr Mat Min Turns Passed 1462 | 127 1120 215 Spaces Moved 1065 | 75 885 105 Core 5 | 3 2 . Treads . | . . . Legs . | . . . Wheels 1060 | 72 883 105 Hover . | . . . Flight . | . . . Fastest Speed 50 | 50 80 100 Average Speed 90 | 82 90 100 Slowest Speed 200 | 90 200 100 Overloaded Moves . | . . . Propulsion Burnouts . | . . . Robots Hopped . | . . . Cave-ins Triggered . | . . . Exploration Rate (%) 37 | 4 84 24 Regions Visited 2 Branch Regions 1 Pre-discovered Areas . | . . . Known Exits Taken . | . . . Unknown Exits Taken 2 | 1 1 . Scrap Searched . | . . . Spaces Dug . | . . . Terrain Destroyed . | . . . Melee . | . . . Projectile . | . . . AOE . | . . . Actions | -11 -10 -10 --------- Run | Scr Mat Min Total 1349 | 109 1058 182 Wait 103 | . 49 54 Move 1063 | 74 884 105 Hop . | . . . Pick Up 32 | 11 20 1 Fast Attach . | . . . Attach 23 | 7 14 2 Detach . | . . . Swap 1 | . 1 . Drop 12 | . 12 . Fire 115 | 17 78 20 Melee . | . . . Ram . | . . . Kick . | . . . Crush . | . . . Escape Stasis . | . . . Rewire . | . . . Trap . | . . . Miscellaneous . | . . . Route ------- -11/Scrapyard -10/Materials (discovered 4 exits: [*Mat x3] / [*Min]) -10/Mines History --------- Turn | Location | Event 34 | -11/Scrapyard | Discovered new exit (range 16) 128 | -11/Scrapyard | Entered Materials 258 | -10/Materials | Discovered new exit (range 10) 309 | -10/Materials | Build established: Mutant 366 | -10/Materials | Discovered new exit (range 15) 730 | -10/Materials | Discovered new exit (range 6) 735 | -10/Materials | Destroyed 8 combat bots 857 | -10/Materials | Repaired Arm. Wheel 889 | -10/Materials | Repaired Arm. Wheel 908 | -10/Materials | Core integrity fell below 50% 1170 | -10/Materials | Discovered new exit (range 14) 1248 | -10/Materials | Entered Mines 1249 | -10/Mines | Met a Derelict bent on vengeance 1269 | -10/Mines | Core integrity fell below 20% 1322 | -10/Mines | Learned 2 Materials zone layouts 1336 | -10/Mines | Learned Materials stockpile data 1463 | -10/Mines | Destroyed by Y-45 Defender with Beam Rifle Last Messages --------------- S-10 Pest destroyed. Assault Rifle destroyed. S-10 Pest destroyed. Destroyed Flight Unit. S-10 Pest destroyed. Acquired 12 matter. Acquired Lgt. Assault Rifle. Acquired 15 matter. A pair of derelicts emerge from the shadows: "We're, um, lost. You wouldn't happen to know the way out of here, would you?" Acquired derelict log, extracted data. Data stored: Materials zone layouts (x2). Acquired derelict log, extracted data. Data stored: Materials stockpile data. Extracted 67 matter. Acquired derelict log, extracted data. Data stored: Mines entrances (x2). S-10 Pest destroyed. Acquired 8 matter. OX-WPW(z) destroyed. Map ----- +----------------------------------------------------+ | | | | | | | | | | | | | | | | | | | | | | | | | | | ???????????????????????????????????? | | ???????????????????????????????????? | | ????????????????????????##?????????? | | ???????????????????????? ????????? | | ???????????????????????"" "????????? | | ??????????????????# ??""" ""??"""??? | | ??????????????????# """ """ """ ?? | | ??????????????????# ??? | | ??????????????????# """ """ """ ?? | | ??????????????????# """ """ """ #? | | ??????????????????# """ """ """ #? | | ??????????????????# #? | | ??????????????????# @* #? | | ??????????# ########Y####????? | | ???????????# *%! ==Y#???????? | | ???????????# ########%#???????? | | ?????????????????????????#*#???????? | | ?????????????????????????#=#???????? | | ?????????????????????????# #???????? | | ?????????????????????????#*#???????? | | ?????????????????????????#%#???????? | | ????????????????????###### #???????? | | ????????????????????# #???????? | | ????????????????????# #####???????? | | ?????????????????#### #???????????? | | ????????????????## #???????????? | | ????????????????# #???????????? | | ????????????????# #???????????? | | ???????????????## """ ##??????????? | | ???????????????# """ #??????????? | | ???????????###?# """ #??????????? | | ??????????? #?# ##??????????? | | ???????????# #?## ##???????????? | | ???????????# #??## ## #????????????? | | ???????????# #???# #? #????????????? | | ??????????## ##### #? #????????????? | | ??????????# #? ?????????????? | +----------------------------------------------------+ Best States ------------- Heat Dissipation 25 Energy Generation 10 Energy Capacity 250 Matter Stores 300 Matter Capacity 300 Sight Range 16 Terrain Scan Range 16 Terrain Scan Density 10 Resistance: KI 20 Resistance: TH 20 Resistance: EX 20 Resistance: EM 20 Resistance: I 20 Resistance: S 20 Resistance: P 20 Evasion (%) 44 Targeting Accuracy 5 Offensive Hacking 10 Item Schematics ----------------- None Robot Schematics ------------------ None Fabricated ------------ Nothing Alien Tech Used ----------------- None Achievements -------------- None Challenges ------------ None Game ------ Seed ImpulseCannonBuckler Manual? 0 Play Time 00:22:12 Cumulative 13.4 hours Start 2020.02.14 @ 02:40:53 End 2020.02.15 @ 21:34:47 Sessions 2 Manual Loads 0 Difficulty Adventurer Special Mode None Game No. 8 Rogue 0 Adventurer 8 Explorer 0 Win Type - Total 0 Types 0/0/0/0/0/0/0 Lore% 11 Gallery% 17 Achievement% 14 Wizard Run 0 Options --------- ASCII 0 Keyboard 0 Movement Mouse Keybinds 0 Fullscreen 1 Font 18/X11Bold Map View 76x50 Tactical HUD 0 Map Filters NONE Filters NONE Steam 1 RUN: facddec2-9f30-4b06-9d81-66002b6f10c4